[Event "European Women Blitz-ch 2024"]
[Site "Monaco"]
[Date "2025.01.10"]
[Round "2.11"]
[White "Hejazipour, Mitra"]
[Black "Cramling Bellon, Anna"]
[Result "1-0"]
[Annotator "TA"]
[ECO "A06"]
[WhiteElo "2310"]
[BlackElo "2052"]
[PlyCount "83"]
[EventDate "2025.01.06"]
[EventType "swiss"]
[EventCountry "MNC"]
[SourceTitle "playchess.com"]
[Source "ChessBase"]
[SourceQuality "1"]
[TimeControl "180+2"]

{[%evp 12,83,7,0,17,18,4,7,9,-12,0,-9,-2,-36,-24,-29,-27,-26,-27,-20,-4,-10,0,-17,-16,-427,-11,-22,0,0,69,66,68,43,39,34,57,58,158,161,673,130,643,0,80,48,328,331,328,321,297,270,358,160,204,117,126,89,90,105,162,157,197,99,222,91,277,276,416,300,29977,29978,29972,29975]} 1. Nf3 {[%emt 0:00:02]} d5 {[%emt 0:00:04]} 2. b3 {[%emt 0:00:02]} c5 {[%emt 0:00:07]} 3. e3 {[%emt 0:00:03]} Nc6 {[%emt 0:00:02]} 4. Bb2 {[%emt 0:00:02]} Nf6 {[%emt 0:00:10]} 5. d4 {[%emt 0:00:12]} Bg4 {[%emt 0:00:19]} 6. Be2 {[%emt 0:00:04]} e6 {[%emt 0:00:01]} 7. O-O {[%emt 0:00:02]} Be7 {[%emt 0:00:10]} 8. Nbd2 {[%emt 0:00:10]} O-O {[%emt 0:00:07]} 9. c4 {[%emt 0:00:12]} cxd4 {[%emt 0:00:50]} 10. exd4 {[%emt 0:00:02]} Ne4 {[%emt 0:00:24]} 11. h3 {[%emt 0:00:20]} Bh5 {[%emt 0:00:11]} 12. Ne5 {[%emt 0:00:38]} Bxe2 {[%emt 0:00:08]} 13. Qxe2 {[%emt 0:00:07]} Nxd2 {[%emt 0:00:08]} 14. Nxc6 {[%emt 0:00:10]} bxc6 {[%emt 0:00:06]} 15. Qxd2 {[%emt 0:00:01]} Bf6 {[%emt 0:00:07]} 16. Rac1 {[%emt 0:00:09]} a5 {[%emt 0:00:02][%cal Ba7a5,Ba5a4][%mdl 32]} 17. Rc2 {[%emt 0:00:20]} a4 {[%emt 0:00:04]} 18. Ba3 $2 {[%emt 0:00:21][%mdl 8192]} (18. b4 $1 $11) 18... Re8 $2 {[%emt 0:00:07]} (18... axb3 $1 $19 19. Bxf8 bxc2) 19. Bc5 {[%emt 0:00:02]} dxc4 {[%emt 0:00:23]} 20. bxc4 {[%emt 0:00:06]} e5 {[%emt 0:00:00]} (20... Be7 $11) 21. d5 $14 {[%emt 0:00:07]} Bg5 {[%emt 0:00:03]} 22. Be3 {[%emt 0:00:06]} Bxe3 {[%emt 0:00:03]} 23. fxe3 {[%emt 0:00:01]} cxd5 {[%emt 0:00:01]} 24. cxd5 {[%emt 0:00:01]} e4 {[%emt 0:00:05]} (24... Ra6 $14) 25. d6 $16 {[%emt 0:00:05] Strongly threatening Rc7.} Re6 $2 {[%emt 0:00:01]} (25... Rf8 26. d7 Qe7) 26. Qd5 $2 {[%emt 0:00:13]} (26. d7 $18 {is more deadly.}) 26... Rb8 $2 {[%emt 0:00:05][%mdl 8192]} (26... Rxd6 $16 27. Qxf7+ (27. Qxe4 Re6 $11) 27... Kh8) 27. Rcf2 $2 {[%emt 0:00:05]} (27. d7 $18) 27... Qd7 {[%emt 0:00:04]} (27... Qxd6 $11 28. Qxd6 Rxd6) 28. Rxf7 $40 {[%emt 0:00:09][%mdl 128] White mounts an attack. White is more active.} (28. Rd2 {simplifies} h6 29. Rfd1 Rb6 30. Qc5) 28... Qxf7 $4 {[%emt 0:00:01][%mdl 8192]} (28... Qxd6 $14 29. Qxd6 Rxd6) 29. Rxf7 $18 {[%emt 0:00:01]} Kxf7 $16 {[%emt 0:00:01][%mdl 4096] Endgame KQ-KRR} 30. Qf5+ {[%emt 0:00:01]} Rf6 {[%emt 0:00:01]} 31. Qd7+ {[%emt 0:00:01]} (31. Qxe4 Rxd6 32. Qf4+ (32. Qxa4 Kg8 $16) (32. Qxh7 Rd2 $16) 32... Ke6 33. Qxa4 Rbd8 $16) 31... Kg6 {[%emt 0:00:02]} 32. Qg4+ {[%emt 0:00:02]} (32. Qxa4 Rxd6 33. Qxe4+ Kf7 34. Qf4+ (34. Qxh7 Ra8 $16) 34... Ke6 $16) ({Don't take} 32. Qe7 Rb1+ 33. Kh2 Rd1 34. Qxe4+ Kf7 35. Qe7+ (35. Qxh7 Rdxd6 36. Qc2 Rde6 $16) 35... Kg6) (32. Kh2 $18) 32... Kf7 {[%emt 0:00:01]} 33. d7 {[%emt 0:00:01]} (33. Qxe4 Rxd6 34. Qf4+ (34. Qxa4 Kg8 $16) (34. Qxh7 Rd2 $16) 34... Ke6 35. Qxa4 Rbb6 36. Qe4+ Kf7 $16) (33. Qh5+ $18 Kf8 34. Qxh7 Rb1+ 35. Kh2 Rxd6 36. Qh8+ (36. Qxe4 Rdd1 $11) 36... Kf7 37. Qh5+ g6 38. Qh7+ Kf8 39. Qh6+ Ke8 40. Qg7) 33... Rd8 {[%emt 0:00:02]} 34. Qxe4 {[%emt 0:00:02]} Rxd7 {[%emt 0:00:02]} 35. Qxa4 {[%emt 0:00:01]} Rfd6 {[%emt 0:00:03]} (35... Re7 $16) 36. Qc4+ $18 {[%emt 0:00:02]} Ke7 {[%emt 0:00:01]} 37. Qe4+ {[%emt 0:00:01]} ({White should play} 37. e4 $18) 37... Re6 {[%emt 0:00:01]} (37... Kf7 $16 38. Kf2 (38. Qxh7 Re7 $14) 38... Rd2+ 39. Kg3 h6) 38. Qh4+ {[%emt 0:00:01]} (38. Qxh7 $18 Kf6 39. e4) 38... Rf6 $2 {[%emt 0:00:02]} (38... Kf8 $16) 39. Qxh7 {[%emt 0:00:02]} Rd1+ {[%emt 0:00:01]} 40. Kh2 {[%emt 0:00:01]} Kf7 $2 {[%emt 0:00:04]} (40... Rf7 $18 41. Qh4+ Kf8 42. Qh8+ Ke7) 41. Qh5+ {[%emt 0:00:01]} Rg6 {[%emt 0:00:05]} 42. Qxd1 {[%emt 0:00:01]} 1-0

[Event "European Women Blitz-ch 2024"]
[Site "Monaco"]
[Date "2025.01.10"]
[Round "2.12"]
[White "Osmak, Yuliia"]
[Black "Kazarian, Anna-Maja"]
[Result "0-1"]
[Annotator "TA"]
[ECO "C01"]
[WhiteElo "2463"]
[BlackElo "2206"]
[PlyCount "92"]
[EventDate "2025.01.06"]
[EventType "swiss"]
[EventCountry "MNC"]
[SourceTitle "playchess.com"]
[Source "ChessBase"]
[SourceQuality "1"]
[TimeControl "180+2"]

{[%evp 13,92,0,0,-6,-19,-8,-18,-20,-11,-5,0,-15,-23,-18,-14,-36,-36,-33,-7,-87,-76,-78,-23,-27,-26,-75,-80,-356,-293,-272,-192,-1560,-1065,-1123,-1129,-1107,-1092,-1034,-603,-604,-611,-602,-579,-566,-567,-951,-671,-681,-668,-633,-611,-699,-677,-671,-695,-714,-604,-744,-741,-804,-787,-1268,-1044,-1311,-1251,-29979,-29980,-5593,-1422,-29990,-29991,-29991,-29992,-29992,-29993,-29993,-29994,-29995,-29993,-29995,-29996]} 1. e4 {[%emt 0:00:23]} e6 {[%emt 0:00:01]} 2. d4 {[%emt 0:00:02]} d5 {[%emt 0:00:01]} 3. exd5 {[%emt 0:00:01]} exd5 {[%emt 0:00:01]} 4. Nf3 {[%emt 0:00:01]} Bd6 {[%emt 0:00:06]} 5. Bd3 {[%emt 0:00:05]} Ne7 {[%emt 0:00:02]} 6. O-O {[%emt 0:00:03]} O-O {[%emt 0:00:05]} 7. c3 {[%emt 0:00:01]} Bf5 {[%emt 0:00:03]} 8. Be2 {[%emt 0:00:08]} Ng6 {[%emt 0:00:07]} 9. Re1 {[%emt 0:00:02]} Nd7 {[%emt 0:00:06]} 10. Qb3 {[%emt 0:00:05]} Nb6 {[%emt 0:00:04]} 11. a4 {[%emt 0:00:02]} a5 {[%emt 0:00:05]} 12. Na3 {[%emt 0:00:03]} Re8 {[%emt 0:00:09]} 13. Bg5 {[%emt 0:00:02]} Qd7 {[%emt 0:00:16]} 14. Bb5 {[%emt 0:00:18]} c6 {[%emt 0:00:03]} 15. Bf1 {[%emt 0:00:03]} Bc7 {[%emt 0:00:04]} 16. Nc2 {[%emt 0:00:11]} (16. c4 $11) 16... Be4 {[%emt 0:00:07]} 17. Nd2 {[%emt 0:00:06]} Qf5 {[%emt 0:00:46]} (17... Qg4 $17 18. Nxe4 dxe4) 18. Nxe4 $11 {[%emt 0:00:02]} dxe4 {[%emt 0:00:10]} 19. Be3 {[%emt 0:00:06]} (19. h4 $11) 19... Nh4 $17 {[%emt 0:00:04] Black is more active.} 20. Rad1 $2 {[%emt 0:00:15][%mdl 8192]} (20. Kh1 $17 {was forced.}) 20... Qh5 {[%emt 0:00:01][%cal Oh4f3] ( -> ...Nf3+!)} 21. h3 {[%emt 0:00:06]} Re6 $40 {[%emt 0:00:19][%mdl 128] Black wants a kill.} 22. d5 $2 {[%emt 0:00:11]} (22. Kh1) 22... Rg6 {[%emt 0:00:09] ( -> ...Nf3+)} (22... cxd5 23. Nd4 (23. Bxb6 $2 Nf3+ 24. Kh1 Rxb6 $19) 23... Rg6 24. g3 $15) (22... Nxd5 23. Qxb7 Nf3+ 24. Kh1 $17 (24. gxf3 $2 Rg6+ 25. Bg2 Rxg2+ 26. Kf1 Rb8 $19)) 23. Nd4 {[%emt 0:00:18] [#]} Nxg2 $1 {[%emt 0:00:14][%mdl 512]} 24. Bxg2 {[%emt 0:00:07]} Qxh3 {[%emt 0:00:02][%csl Gg6][%cal Rh3g2]} (24... Qxd5 $2 {loses.} 25. Qxd5 Nxd5 26. Bc1 $18) 25. Kf1 {[%emt 0:00:04]} Qxg2+ {[%emt 0:00:10]} 26. Ke2 {[%emt 0:00:01]} Nxd5 {[%emt 0:00:02]} 27. Rg1 {[%emt 0:00:05]} Qh3 {[%emt 0:00:18]} ({Not} 27... Qxg1 28. Rxg1 Rxg1 29. Qxb7 $19) 28. Rxg6 {[%emt 0:00:04]} hxg6 {[%emt 0:00:01]} 29. c4 {[%emt 0:00:24]} Nxe3 {[%emt 0:00:08]} 30. Qxe3 {[%emt 0:00:06]} Qg4+ {[%emt 0:00:01]} 31. Ke1 {[%emt 0:00:10]} Re8 {[%emt 0:00:01]} 32. Ne2 {[%emt 0:00:04] Prevents Bf4} Be5 {[%emt 0:00:05]} 33. Rd2 {[%emt 0:00:03]} Bf6 {[%emt 0:00:02]} 34. Qg3 {[%emt 0:00:04]} Qe6 {[%emt 0:00:04]} 35. b3 {[%emt 0:00:05]} Qe7 {[%emt 0:00:03]} 36. Qh3 {[%emt 0:00:05]} Qb4 {[%emt 0:00:06] And now ...Rd8 would win.} 37. Kd1 {[%emt 0:00:05]} Bg5 {[%emt 0:00:03]} 38. Rd4 {[%emt 0:00:08]} e3 {[%emt 0:00:01]} 39. f4 {[%emt 0:00:02]} Qxb3+ {[%emt 0:00:01]} 40. Ke1 {[%emt 0:00:00]} Bf6 {[%emt 0:00:02]} 41. Rd1 {[%emt 0:00:02]} Bc3+ {[%emt 0:00:02]} 42. Nxc3 {[%emt 0:00:03]} Qxc3+ {[%emt 0:00:00]} 43. Ke2 {[%emt 0:00:03]} Qc2+ {[%emt 0:00:01]} 44. Kf3 {[%emt 0:00:05]} Qxd1+ {[%emt 0:00:01]} 45. Kg3 {[%emt 0:00:01]} Qg1+ {[%emt 0:00:01]} 46. Kh4 {[%emt 0:00:02]} e2 {[%emt 0:00:02]} 0-1

[Event "European Women Blitz-ch 2024"]
[Site "Monaco"]
[Date "2025.01.10"]
[Round "2.13"]
[White "Maisuradze, Nino"]
[Black "Maltsevskaya, Aleksandra"]
[Result "0-1"]
[Annotator "TA"]
[ECO "E73"]
[WhiteElo "2174"]
[BlackElo "2368"]
[PlyCount "64"]
[EventDate "2025.01.06"]
[EventType "swiss"]
[EventCountry "MNC"]
[SourceTitle "playchess.com"]
[Source "ChessBase"]
[SourceQuality "1"]
[TimeControl "180+2"]

{[%evp 14,64,19,25,11,24,7,-20,-24,-38,4,-7,53,0,68,-40,-30,-108,-97,-96,-76,-209,-67,-322,-208,-323,-320,-322,-323,-292,-260,-364,-289,-249,-207,-450,-420,-611,-598,-583,-563,-556,-558,-604,-521,-779,-568,-5415,-1255,-29983,-29984,-29993,-29994]} 1. d4 {[%emt 0:00:02]} Nf6 {[%emt 0:00:01]} 2. c4 {[%emt 0:00:02]} g6 {[%emt 0:00:02]} 3. Nc3 {[%emt 0:00:01]} Bg7 {[%emt 0:00:01]} 4. e4 {[%emt 0:00:01]} d6 {[%emt 0:00:01]} 5. Be2 {[%emt 0:00:02]} O-O {[%emt 0:00:03]} 6. h4 {[%emt 0:00:01][%cal Bh2h4,Bh4h5,Bh5h6][%mdl 32]} c5 {[%emt 0:00:02]} 7. d5 {[%emt 0:00:01]} e6 {[%emt 0:00:01]} 8. h5 {[%emt 0:00:01]} exd5 {[%emt 0:00:02]} 9. exd5 {[%emt 0:00:02]} Re8 {[%emt 0:00:07]} 10. h6 {[%emt 0:00:12]} Bh8 {[%emt 0:00:02]} 11. Kf1 {[%emt 0:00:13]} a6 {[%emt 0:00:06]} 12. a4 {[%emt 0:00:07]} Bf5 {[%emt 0:00:41]} (12... Ne4 $11) 13. g4 $14 {[%emt 0:00:11]} Bc8 {[%emt 0:00:39]} ({Better is} 13... Rxe2 $1 $11 14. gxf5 Re7) 14. Be3 {[%emt 0:00:53]} (14. f3 $1 $14) 14... Nbd7 {[%emt 0:00:03][%cal Oe8e3,Bb8d7,Bd7e5,Be5g4][%mdl 32]} 15. g5 {[%emt 0:00:18]} (15. Qd2 $11) 15... Ne4 {[%emt 0:00:01]} 16. Nxe4 {[%emt 0:00:04]} Rxe4 {[%emt 0:00:02]} 17. Bd3 {[%emt 0:00:02]} (17. Qb3 $17 {is a better defense.}) 17... Re8 {[%emt 0:00:03]} (17... Rxe3 $1 $19 18. fxe3 Qxg5) 18. b3 $2 {[%emt 0:00:49][%mdl 8192]} Ne5 {[%emt 0:00:08]} 19. Bc2 {[%emt 0:00:07]} (19. Rc1 $142) 19... Ng4 $19 {[%emt 0:00:07]} 20. Bf4 {[%emt 0:00:24][%cal Og1f3]} Bd4 {[%emt 0:00:02][%cal Og4f2]} 21. Nh3 {[%emt 0:00:02]} Ne5 {[%emt 0:00:20]} 22. Rb1 {[%emt 0:00:03] [#]} b5 $1 {[%emt 0:00:04][%mdl 512]} 23. Bxe5 {[%emt 0:00:03]} Bxe5 {[%emt 0:00:03]} ({Resist} 23... dxe5 24. Qd2) 24. axb5 $2 {[%emt 0:00:04]} (24. Qd2) 24... axb5 {[%emt 0:00:01]} 25. f4 {[%emt 0:00:02]} (25. cxb5 $142 Ra2 26. b6) 25... Bxh3+ {[%emt 0:00:09]} 26. Rxh3 {[%emt 0:00:01]} Bxf4 {[%emt 0:00:02]} 27. Qg4 {[%emt 0:00:01]} Bxg5 {[%emt 0:00:22]} 28. cxb5 {[%emt 0:00:01]} Re5 {[%emt 0:00:06][%cal Oa8a2]} 29. Rf3 {[%emt 0:00:03]} Bxh6 {[%emt 0:00:03][%cal Oa8a2] Strongly threatening ...Ra2!.} (29... Rxd5 $2 {is the wrong capture.} 30. Qc4 $18) 30. Kf2 {[%emt 0:00:02]} Qe7 {[%emt 0:00:02]} (30... Ra2 $142 31. Qc4 Qg5) 31. Bd3 {[%emt 0:00:09]} Ra2+ {[%emt 0:00:04]} 32. Kg3 {[%emt 0:00:00]} Rg5 {[%emt 0:00:03]} 0-1

[Event "European Women Blitz-ch 2024"]
[Site "Monaco"]
[Date "2025.01.10"]
[Round "2.14"]
[White "Roebers, Eline"]
[Black "Rudzinska, Michalina"]
[Result "1-0"]
[Annotator "TA"]
[ECO "B46"]
[WhiteElo "2381"]
[BlackElo "2226"]
[PlyCount "61"]
[EventDate "2025.01.06"]
[EventType "swiss"]
[EventCountry "MNC"]
[SourceTitle "playchess.com"]
[Source "ChessBase"]
[SourceQuality "1"]
[TimeControl "180+2"]

{[%evp 11,61,23,25,23,27,14,39,17,70,44,65,35,69,64,133,107,129,75,79,74,73,-12,108,58,55,48,125,63,194,68,169,117,153,134,184,192,198,148,305,332,328,317,327,301,300,233,239,235,344,281,701,426]} 1. e4 {[%emt 0:00:01]} c5 {[%emt 0:00:01]} 2. Nf3 {[%emt 0:00:01]} e6 {[%emt 0:00:01]} 3. d4 {[%emt 0:00:01]} cxd4 {[%emt 0:00:01]} 4. Nxd4 {[%emt 0:00:01]} Nc6 {[%emt 0:00:01]} 5. Nc3 {[%emt 0:00:02]} a6 {[%emt 0:00:01]} 6. Bf4 {[%emt 0:00:03]} d6 {[%emt 0:00:02]} 7. Nxc6 {[%emt 0:00:07]} bxc6 {[%emt 0:00:02]} 8. Qd2 {[%emt 0:00:01]} e5 {[%emt 0:00:09]} 9. Bg3 {[%emt 0:00:06]} Be6 {[%emt 0:00:06]} (9... Nf6 $11) 10. O-O-O {[%emt 0:00:08]} Qa5 {[%emt 0:00:08][%cal Og8f6]} 11. Kb1 {[%emt 0:00:10]} Rb8 {[%emt 0:00:21]} 12. f4 {[%emt 0:00:25]} Rb4 {[%emt 0:01:43]} (12... Bg4 $14 13. Ne2 Qa3) 13. b3 {[%emt 0:00:13]} Rd4 {[%emt 0:00:05] [#]} 14. Qe3 {[%emt 0:00:07]} (14. Bd3 $142 $1) 14... Rxd1+ $16 {[%emt 0:00:08]} 15. Nxd1 {[%emt 0:00:01]} Nf6 {[%emt 0:00:11]} 16. Nb2 {[%emt 0:00:01]} (16. fxe5 $16 dxe5 17. h3) 16... Be7 {[%emt 0:00:09]} (16... d5 $1 $11 {keeps the balance.}) 17. Nc4 {[%emt 0:00:07]} (17. fxe5 $16 dxe5 18. Nc4) 17... Bxc4 $14 {[%emt 0:00:02]} 18. Bxc4 {[%emt 0:00:01]} O-O {[%emt 0:00:05]} (18... exf4 $1 $14 19. Bxf4 O-O) 19. Rd1 {[%emt 0:00:10]} (19. fxe5 $16 dxe5 20. h3) 19... Rb8 {[%emt 0:00:03]} ({Black should play} 19... Ng4 $14 20. Qd2 Qc5) 20. Be1 {[%emt 0:00:07]} (20. Qa7 $18 Qd8 21. fxe5 Nxe4 22. exd6 (22. Bxa6 $2 Nc3+ 23. Ka1 Nxd1 $19) 22... Nc3+ 23. Ka1) 20... Qc7 {[%emt 0:00:03]} (20... exf4 $14 21. Qxf4 Qh5) 21. Bc3 {[%emt 0:00:20] This pair of bishops is nice.} ({White should play} 21. fxe5 $18 dxe5 22. Bxa6) 21... Nd7 {[%emt 0:00:11]} 22. Qf3 {[%emt 0:00:13] White has more active pieces. Black is weak on the light squares} Bf8 {[%emt 0:00:05]} (22... Bf6 $16 23. Bxa6 h6) 23. Rf1 $18 {[%emt 0:00:24]} Nb6 {[%emt 0:00:02]} 24. Ba5 {[%emt 0:00:14]} (24. Bxa6 $18 {Strongly threatening fxe5.} exf4 25. Qxf4) 24... Nxc4 $2 {[%emt 0:00:05]} (24... d5 $16 {was worth a try.} 25. exd5 cxd5 26. Bxd5 (26. Bxa6 e4 $11) 26... exf4) 25. Bxc7 {[%emt 0:00:01][%cal Ba5c7,Bc7b8,Bb8d6][%mdl 32]} Nd2+ {[%emt 0:00:01][%cal Bc4d2,Bd2f3,Bf3h2][%mdl 32]} 26. Kc1 {[%emt 0:00:02]} Nxf3 {[%emt 0:00:02]} 27. Bxb8 {[%emt 0:00:01]} Nxh2 {[%emt 0:00:02]} 28. Rd1 {[%emt 0:00:08]} exf4 {[%emt 0:00:02]} 29. e5 {[%emt 0:00:09]} dxe5 {[%emt 0:00:01]} (29... d5 $142 30. c4 Be7 31. cxd5 cxd5 32. Rxd5 f3 33. gxf3 Nxf3) 30. Rd8 {[%emt 0:00:01]} e4 $2 {[%emt 0:00:06]} (30... f3 31. Bd6 (31. Bxe5 $2 {loses.} f2 $19) 31... g5 32. Bxf8 h5 33. Bc5+ Kg7) 31. Bd6 {[%emt 0:00:01]} 1-0

[Event "European Women Blitz-ch 2024"]
[Site "Monaco"]
[Date "2025.01.10"]
[Round "2.15"]
[White "Piddubna, Bozhena"]
[Black "Injac, Teodora"]
[Result "1/2-1/2"]
[Annotator "TA"]
[ECO "E10"]
[WhiteElo "2152"]
[BlackElo "2453"]
[PlyCount "73"]
[EventDate "2025.01.06"]
[EventType "swiss"]
[EventCountry "MNC"]
[SourceTitle "playchess.com"]
[Source "ChessBase"]
[SourceQuality "1"]
[TimeControl "180+2"]

{[%evp 9,73,27,32,15,41,31,14,29,38,10,30,10,18,0,17,-21,-20,-33,-28,-25,-20,-29,-8,-37,-12,-1,-9,-9,0,-33,-19,-34,0,0,0,0,0,-4,0,0,0,-14,-14,-10,0,-53,-7,-62,-22,-24,0,-35,-14,-7,-11,-77,90,-24,0,0,0,-43,0,0,0,-16]} 1. d4 {[%emt 0:00:02]} Nf6 {[%emt 0:00:01]} 2. c4 {[%emt 0:00:01]} e6 {[%emt 0:00:01]} 3. Nf3 {[%emt 0:00:01]} h6 {[%emt 0:00:02]} 4. g3 {[%emt 0:00:01]} d5 {[%emt 0:00:04]} 5. Bg2 {[%emt 0:00:01]} Bb4+ {[%emt 0:00:01]} 6. Bd2 {[%emt 0:00:00]} a5 {[%emt 0:00:02]} 7. Qc2 {[%emt 0:00:04]} O-O {[%emt 0:00:03]} 8. O-O {[%emt 0:00:02]} c6 {[%emt 0:00:01]} 9. a3 {[%emt 0:00:17]} Be7 {[%emt 0:00:02]} 10. Rc1 {[%emt 0:00:03]} Nbd7 {[%emt 0:00:03]} 11. a4 {[%emt 0:00:04]} b6 {[%emt 0:00:06]} 12. Na3 {[%emt 0:00:04]} Ba6 {[%emt 0:00:04]} 13. b3 {[%emt 0:00:05]} Rc8 {[%emt 0:00:03]} 14. Qb2 {[%emt 0:00:10]} Ne4 {[%emt 0:00:02]} 15. Be3 {[%emt 0:00:07]} Bb4 {[%emt 0:00:21]} 16. Nd2 {[%emt 0:00:32]} Ndf6 {[%emt 0:00:04]} 17. Nxe4 {[%emt 0:00:35]} Nxe4 {[%emt 0:00:01]} 18. Bxe4 {[%emt 0:00:02]} dxe4 {[%emt 0:00:01]} 19. Nc2 {[%emt 0:00:09][%cal Ba3c2,Bc2e1,Be1g2][%mdl 32]} Be7 {[%emt 0:00:05]} 20. Rd1 {[%emt 0:00:04]} f5 {[%emt 0:00:12]} 21. Bf4 {[%emt 0:00:15]} Qe8 {[%emt 0:00:09]} 22. Be5 {[%emt 0:00:09]} Qh5 {[%emt 0:00:09]} 23. Ne1 {[%emt 0:00:30]} Bb7 {[%emt 0:00:41]} 24. Ng2 {[%emt 0:00:05][%cal Od4d5]} Qf7 {[%emt 0:00:11]} 25. e3 {[%emt 0:00:03]} Rfd8 {[%emt 0:00:22]} 26. Rd2 {[%emt 0:00:08]} g5 {[%emt 0:00:06]} 27. Rad1 {[%emt 0:00:02]} (27. Ne1 $11) 27... Kh7 {[%emt 0:00:01]} (27... Qh5 $15 {deserves consideration.}) 28. Kh1 {[%emt 0:00:09]} (28. Ne1 $11) 28... Kg6 {[%emt 0:00:03]} 29. Rg1 {[%emt 0:00:05]} c5 {[%emt 0:00:13]} 30. Rdd1 {[%emt 0:00:02]} cxd4 {[%emt 0:00:07]} 31. Rxd4 {[%emt 0:00:02]} Bc5 {[%emt 0:00:23]} 32. Rd2 {[%emt 0:00:03]} (32. Rxd8 $11 {remains equal.} Rxd8 33. Bc3) 32... Qe7 $2 {[%emt 0:00:09]} (32... Rd3 $17 {[%cal Oc5a3]} 33. Bc3 Rcd8) 33. Rgd1 {[%emt 0:00:02]} ({White should play} 33. Nf4+ $16 Kf7 34. Rxd8 Rxd8 35. Qe2) 33... Bb4 {[%emt 0:00:07]} 34. Rd4 {[%emt 0:00:00]} Bc5 {[%emt 0:00:01] A strong pair of Bishops.} 35. R4d2 {[%emt 0:00:01]} Bb4 {[%emt 0:00:03]} (35... Rd3 $5 36. Kg1 Rcd8 $11) 36. Rd4 {[%emt 0:00:01]} Bc5 {[%emt 0:00:01]} 37. R4d2 {[%emt 0:00:00]} 1/2-1/2

[Event "European Women Blitz-ch 2024"]
[Site "Monaco"]
[Date "2025.01.10"]
[Round "2.16"]
[White "Javakhishvili, Lela"]
[Black "Schulze, Lara"]
[Result "1-0"]
[Annotator "TA"]
[ECO "A06"]
[WhiteElo "2426"]
[BlackElo "2266"]
[PlyCount "91"]
[EventDate "2025.01.06"]
[EventType "swiss"]
[EventCountry "MNC"]
[SourceTitle "playchess.com"]
[Source "ChessBase"]
[SourceQuality "1"]
[TimeControl "180+2"]

{[%evp 9,91,0,13,8,6,0,0,0,0,0,12,-12,-12,-6,-7,-2,0,-14,-9,-44,26,14,32,2,9,2,11,-7,-4,0,48,0,9,9,37,14,19,14,16,0,16,12,8,0,0,0,21,-5,26,7,83,74,91,89,96,79,85,70,99,92,112,21,84,27,287,20,20,20,122,95,95,95,87,56,133,8,12,11,11,12,39,35,1335,1293]} 1. Nf3 {[%emt 0:00:02]} d5 {[%emt 0:00:01]} 2. b3 {[%emt 0:00:01]} Bg4 {[%emt 0:00:13]} 3. e3 {[%emt 0:00:03]} Nf6 {[%emt 0:00:03]} 4. Bb2 {[%emt 0:00:02]} e6 {[%emt 0:00:04]} 5. h3 {[%emt 0:00:02]} Bh5 {[%emt 0:00:04]} 6. g4 {[%emt 0:00:02]} Bg6 {[%emt 0:00:01]} 7. Ne5 {[%emt 0:00:01]} Nbd7 {[%emt 0:00:04]} 8. Nxg6 {[%emt 0:00:04]} hxg6 {[%emt 0:00:01]} 9. Bg2 {[%emt 0:00:33]} Bd6 {[%emt 0:00:03]} 10. Nc3 {[%emt 0:00:05]} c6 {[%emt 0:00:05]} 11. g5 {[%emt 0:00:09]} Nh5 {[%emt 0:00:19]} 12. h4 {[%emt 0:00:02]} Qe7 {[%emt 0:00:18]} 13. Qe2 {[%emt 0:00:12]} Ba3 {[%emt 0:00:16]} 14. O-O-O {[%emt 0:00:04]} O-O-O {[%emt 0:00:09]} (14... a5 $15) 15. d4 {[%emt 0:00:21]} Kb8 {[%emt 0:00:10]} 16. Na4 {[%emt 0:00:04]} Bxb2+ {[%emt 0:00:04]} 17. Kxb2 {[%emt 0:00:02]} e5 {[%emt 0:00:13]} 18. Qg4 {[%emt 0:00:15]} exd4 {[%emt 0:00:17]} 19. Qxd4 {[%emt 0:00:07]} Qe5 {[%emt 0:00:04]} (19... Rhf8 $11) 20. Nc3 {[%emt 0:00:26]} (20. Qxe5+ $14 Nxe5 21. Kc1) 20... Qxd4 {[%emt 0:00:07]} 21. Rxd4 {[%emt 0:00:02]} Rhe8 {[%emt 0:00:13]} 22. Ne2 {[%emt 0:00:03]} Ne5 {[%emt 0:00:05]} 23. Rhd1 {[%emt 0:00:12]} Kc7 {[%emt 0:00:01]} 24. Bh3 {[%emt 0:00:13]} Nf3 {[%emt 0:00:12]} 25. Ra4 {[%emt 0:00:01][%cal Oh3g4]} a6 {[%emt 0:00:04]} 26. Bg4 {[%emt 0:00:04]} Ne5 {[%emt 0:00:02] Strongly threatening ...b5.} 27. Bh3 {[%emt 0:00:10]} Nf3 {[%emt 0:00:07][%cal Od5d4]} 28. Ng1 {[%emt 0:00:06]} Ne5 {[%emt 0:00:12]} 29. Rad4 {[%emt 0:00:03]} Nd7 {[%emt 0:00:14]} (29... f6 $11) 30. c4 $16 {[%emt 0:00:02]} Nb6 {[%emt 0:00:04]} 31. cxd5 {[%emt 0:00:04]} Rxd5 {[%emt 0:00:02]} 32. Ne2 {[%emt 0:00:03]} Rxd4 {[%emt 0:00:03]} 33. Nxd4 {[%emt 0:00:03]} Nd5 {[%emt 0:00:02]} 34. a3 {[%emt 0:00:03]} Rd8 {[%emt 0:00:02]} 35. Rc1 {[%emt 0:00:02]} (35. b4 $16) 35... Kb6 {[%emt 0:00:02]} (35... Nhf4 $1 $11 36. Bf1 (36. exf4 Nxf4 37. Nxc6 Rd2+ 38. Rc2 Nd3+ 39. Kc3 Rxc2+ 40. Kxc2 Nxf2 $11) 36... Ne6) 36. b4 {[%emt 0:00:02]} (36. Bf1 $16) 36... a5 $2 {[%emt 0:00:02][%mdl 8192]} (36... Nhf4 $1 $11 37. Bf1 (37. exf4 Nxf4 38. Nxc6 bxc6 $15) 37... Ne6) 37. Kb3 $2 {[%emt 0:00:01]} ({Only move:} 37. bxa5+ $18 Kc7 38. Bf1) 37... axb4 $11 {[%emt 0:00:01]} 38. axb4 {[%emt 0:00:02]} Ra8 {[%emt 0:00:01]} (38... Nhf4 $1 $11 {keeps the balance.} 39. Bf1 (39. exf4 Nxf4 40. Nxc6 bxc6 $11) 39... Ne6) 39. Bg2 {[%emt 0:00:01]} Ne7 {[%emt 0:00:03]} 40. Nf3 {[%emt 0:00:06] White is more active.} Nf5 {[%emt 0:00:01]} 41. Bh3 {[%emt 0:00:04]} Rd8 {[%emt 0:00:03]} (41... f6 $14) 42. Bxf5 {[%emt 0:00:04]} ({White should play} 42. Ne5 $16) 42... gxf5 {[%emt 0:00:01]} 43. Ne5 {[%emt 0:00:01]} f6 {[%emt 0:00:05]} 44. gxf6 {[%emt 0:00:03]} Nxf6 {[%emt 0:00:01]} 45. Rg1 {[%emt 0:00:01]} Rd2 $2 {[%emt 0:00:06][%mdl 8192] [#]} (45... Rg8 $14) 46. Nc4+ $1 {[%emt 0:00:01]} (46. Rxg7 Rxf2 47. Nd3 Rh2 $16) 1-0